bitfinex-derivatives/quotes_BTCF0:USTF0_20210104
["timestamp","ask_amount","ask_price","bid_price","bid_amount"]
[1609777263729,3.7285,31162.0,31125.0,0.13632608]
[1609777263931,0.0963,31198.0,31125.0,0.23677608]
[1609777264531,5.2873,31199.0,31125.0,0.23677608]
[1609777264731,5.2873,31199.0,31125.0,0.10045]
[1609777265732,0.13632608,31135.0,31134.0,0.13632608]
[1609777266534,0.13632608,31135.0,31125.0,0.10045]
[1609777266733,0.10882608,31135.0,31125.0,0.10045]
[1609777267234,0.14494,31161.0,31125.0,0.10045]
[1609777268251,0.08432608,31161.0,31158.0,0.13632608]
[1609777268449,0.2952,31190.0,31158.0,0.13632608]
[1609777269853,0.2952,31190.0,31153.0,0.15809]
[1609777270449,0.13632608,31163.0,31161.0,0.13632608]
[1609777271138,0.13632608,31163.0,31153.0,0.15809]
[1609777272141,0.15899,31179.0,31153.0,0.15809]
[1609777272341,0.13632608,31171.0,31170.0,0.13632608]
[1609777273244,0.38499725,31182.0,31170.0,0.13632608]
[1609777273644,0.38499725,31182.0,31170.0,0.28592608]
[1609777274045,0.2952,31190.0,31170.0,0.28592608]
[1609777274444,0.2952,31190.0,31170.0,0.1496]
[1609777274844,0.13632608,31171.0,31170.0,0.1496]
[1609777275244,0.13632608,31171.0,31153.0,0.15809]
[1609777275444,0.13632608,31171.0,31133.0,4.1737]
[1609777275644,0.13632608,31171.0,31154.0,0.14483]
[1609777276046,0.13882,31183.0,31154.0,0.14483]
[1609777277849,0.13882,31183.0,31133.0,4.1737]
[1609777278050,0.13882,31183.0,31003.0,0.1771]
[1609777278250,4.46816,31169.0,31098.0,5.0014]
[1609777278649,0.2882,31168.0,31098.0,5.0014]
[1609777278850,0.2882,31168.0,31127.0,0.13632608]
[1609777279250,0.2882,31168.0,31127.0,0.27753608]
[1609777279852,0.2882,31168.0,31127.0,0.14121]
[1609777281052,0.13632608,31128.0,31127.0,0.14121]
[1609777281453,0.13632608,31128.0,31099.0,0.13632608]
[1609777282454,0.6503,31127.0,31081.0,4.2682]
[1609777282856,0.25236608,31128.0,31057.0,0.02263378]
[1609777283055,5.0002,31124.0,31083.0,0.13632608]
[1609777283254,5.0002,31124.0,31083.0,0.28858608]
[1609777283456,0.11604,31128.0,31083.0,0.15226]
[1609777284356,0.6901,31127.0,31083.0,0.15226]
[1609777285157,0.13632608,31090.0,31083.0,0.15226]
[1609777285762,4.8911,31105.0,31083.0,0.15226]
[1609777285961,0.09962,31101.0,31083.0,0.15226]
[1609777287157,0.13632608,31084.0,31083.0,0.15226]
[1609777287357,0.13632608,31084.0,31066.0,0.2904]
[1609777288358,0.13632608,31084.0,31057.0,0.02263378]
[1609777289159,4.3503,31094.0,31057.0,0.02263378]
[1609777289359,4.3503,31094.0,31073.0,0.13141]
[1609777289558,0.1307,31094.0,31073.0,0.13141]
[1609777289759,0.13632608,31081.0,31073.0,0.13141]
[1609777291162,0.13632608,31081.0,31057.0,0.02263378]
[1609777291670,0.13632608,31081.0,31058.0,0.13632608]
[1609777292066,0.15351,31087.0,31057.0,0.02263378]
[1609777292264,0.15351,31087.0,31067.0,0.10992]
[1609777292466,0.15251,31087.0,31067.0,0.10992]
[1609777292670,0.15251,31087.0,31080.0,16.31844608]
[1609777293871,0.13632608,31081.0,31080.0,16.31844608]
[1609777294272,0.13632608,31081.0,31080.0,15.84324608]
[1609777295077,0.13632608,31081.0,31080.0,15.63214608]
[1609777296670,0.13632608,31081.0,31080.0,15.24569754]
[1609777297471,0.13632608,31081.0,31080.0,14.92359883]
[1609777297670,0.13632608,31081.0,31080.0,14.49059883]
[1609777297869,0.13632608,31081.0,31080.0,14.34129883]
[1609777298873,5.1959,31086.0,31080.0,14.34129883]
[1609777299875,0.13632608,31081.0,31080.0,14.34129883]
[1609777300173,5.1959,31086.0,31080.0,14.34129883]
[1609777300773,0.0954,31085.0,31080.0,14.34129883]
[1609777300973,0.096,31084.0,31080.0,14.34129883]
[1609777301274,5.1959,31086.0,31080.0,14.34129883]
[1609777301875,0.13632608,31081.0,31080.0,14.34129883]
[1609777302276,5.1959,31086.0,31080.0,14.34129883]
[1609777303577,5.1959,31086.0,31080.0,14.06399781]
[1609777303783,5.1959,31086.0,31080.0,13.15429781]
[1609777303980,0.13632608,31081.0,31080.0,13.15429781]
[1609777304778,0.13632608,31081.0,31080.0,12.91019781]
[1609777304979,0.13632608,31081.0,31080.0,12.89979781]
[1609777305178,0.23132608,31081.0,31080.0,12.89979781]
[1609777305880,0.23132608,31081.0,31080.0,12.88859781]
[1609777306683,0.13632608,31081.0,31080.0,12.88859781]
[1609777307083,0.13632608,31081.0,31080.0,12.79159781]
[1609777307284,4.08882608,31086.0,31080.0,12.79159781]
[1609777308085,0.13632608,31081.0,31080.0,12.40473838]
[1609777308486,2.68995216,31086.0,31080.0,12.40473838]
[1609777308686,2.68995216,31086.0,31080.0,12.08247318]
[1609777309988,0.13632608,31081.0,31080.0,12.08247318]
[1609777314693,0.13632608,31081.0,31080.0,9.70157318]
[1609777315093,0.13632608,31081.0,31080.0,9.68517318]
[1609777315293,0.0955,31082.0,31080.0,9.60567318]
[1609777315593,2.68995216,31086.0,31080.0,9.60567318]
[1609777316194,2.68995216,31086.0,31080.0,9.41227318]
[1609777316697,0.13632608,31081.0,31080.0,9.41227318]
[1609777317599,0.13632608,31081.0,31080.0,9.02562542]
[1609777317798,2.68995216,31086.0,31080.0,9.02562542]
[1609777318602,0.13632608,31081.0,31080.0,9.02562542]
[1609777319000,0.13632608,31081.0,31080.0,8.74275729]
[1609777319403,0.13632608,31081.0,31080.0,8.38515729]
[1609777320502,0.13632608,31081.0,31080.0,8.34125729]
[1609777320703,0.23142608,31081.0,31080.0,8.34125729]
[1609777321405,0.23142608,31081.0,31080.0,8.24425729]
[1609777322105,0.23142608,31081.0,31080.0,7.86025729]
[1609777323505,0.13632608,31081.0,31080.0,7.86025729]
[1609777323708,0.13632608,31081.0,31080.0,7.59315729]
[1609777323906,0.13632608,31081.0,31080.0,7.52045729]
[1609777324507,0.13632608,31081.0,31080.0,7.42425729]
[1609777325707,2.68995216,31086.0,31080.0,7.42425729]
[1609777326108,2.68995216,31086.0,31080.0,7.31445729]
[1609777326310,2.68995216,31086.0,31080.0,7.22695729]
[1609777326508,0.0954,31085.0,31080.0,7.03415729]
[1609777326708,2.68895216,31086.0,31080.0,6.58695684]
[1609777326908,0.13632608,31081.0,31080.0,6.49025684]
[1609777327109,0.13632608,31081.0,31080.0,6.48175684]
[1609777327510,0.13632608,31081.0,31080.0,6.46095684]
[1609777327711,0.0979,31084.0,31080.0,6.42875684]
[1609777328012,2.68895216,31086.0,31080.0,6.42875684]
[1609777328211,2.68895216,31086.0,31080.0,6.36675684]
[1609777329013,0.13632608,31081.0,31080.0,6.36675684]
[1609777329413,0.23402608,31081.0,31080.0,6.31895684]
[1609777330114,0.23402608,31081.0,31080.0,6.25645684]
[1609777330616,0.23402608,31081.0,31080.0,6.20705684]
[1609777330815,0.23402608,31081.0,31080.0,5.65988751]
[1609777331014,0.23402608,31081.0,31080.0,5.60368751]
[1609777331214,0.23402608,31081.0,31080.0,5.48398751]
[1609777331416,0.23402608,31081.0,31080.0,5.25868751]
[1609777331614,0.23402608,31081.0,31080.0,5.16338751]
[1609777331816,0.23402608,31081.0,31080.0,5.06948751]
[1609777332015,0.23402608,31081.0,31080.0,5.03298751]
[1609777332516,0.23402608,31081.0,31080.0,5.00978751]
[1609777332716,0.23402608,31081.0,31080.0,4.95928751]
[1609777332915,0.23402608,31081.0,31080.0,4.86428751]
[1609777333315,0.23402608,31081.0,31080.0,4.61088751]
[1609777333515,0.23402608,31081.0,31080.0,3.88658751]
[1609777333715,0.23402608,31081.0,31080.0,3.32748751]
[1609777333918,0.0977,31081.0,31080.0,2.87718751]
[1609777334117,0.0977,31081.0,31080.0,2.83618751]
[1609777334316,0.0977,31081.0,31080.0,2.52008751]
[1609777334515,0.0977,31081.0,31080.0,2.38768751]
[1609777334919,0.0977,31081.0,31080.0,2.27518751]
[1609777335117,0.23402608,31081.0,31080.0,1.78653639]
[1609777335317,0.23402608,31081.0,31080.0,1.75743639]
[1609777336118,0.23402608,31081.0,31080.0,1.69173639]
[1609777336320,0.13632608,31081.0,31080.0,1.64863639]
[1609777336620,0.13632608,31081.0,31080.0,1.55183639]
[1609777336818,0.13632608,31081.0,31080.0,1.48553639]
[1609777337019,0.13632608,31081.0,31080.0,1.45053639]
[1609777337517,0.13632608,31081.0,31080.0,1.40913639]
[1609777337919,0.13632608,31081.0,31080.0,1.39213639]
[1609777338118,0.13632608,31081.0,31080.0,1.38893639]
[1609777338318,0.13632608,31081.0,31080.0,1.37943639]
[1609777338520,0.11842,31081.0,31080.0,1.37943639]
[1609777338820,0.21362,31081.0,31080.0,1.35063639]
[1609777339020,0.34994608,31081.0,31080.0,1.30533639]
[1609777339422,0.15694608,31081.0,31080.0,1.25763639]
[1609777339622,0.1307,31094.0,31080.0,1.25763639]
[1609777339823,0.13842,31084.0,31080.0,1.25763639]
[1609777340022,0.06612,31094.0,31080.0,1.25763639]
[1609777340223,0.0979,31096.0,31080.0,1.25763639]
[1609777340627,0.0979,31096.0,31080.0,0.77410702]
[1609777341049,0.13632608,31081.0,31080.0,0.77410702]
[1609777341227,0.23172608,31081.0,31080.0,0.77410702]
[1609777341524,0.11409,31084.0,31080.0,0.77410702]
[1609777342525,0.0962,31083.0,31080.0,0.77410702]
[1609777342724,0.06739,31084.0,31080.0,0.77410702]
[1609777343125,0.13632608,31081.0,31080.0,0.77410702]
[1609777343326,0.13632608,31081.0,31080.0,0.38763493]
[1609777343725,0.09962,31101.0,31080.0,0.38763493]
[1609777343926,0.14967,31081.0,31080.0,0.38763493]
[1609777345526,0.28599608,31081.0,31080.0,0.38763493]
[1609777346028,0.09962,31101.0,31080.0,0.38763493]
[1609777346230,0.0963,31111.0,31080.0,0.38763493]
[1609777346630,0.48290879,31139.0,31080.0,0.38763493]
[1609777347229,16.65997019,31081.0,31064.0,3.7267]
[1609777347430,16.80581019,31081.0,31080.0,0.13632608]
[1609777347831,16.33376736,31081.0,31064.0,3.2729954]
[1609777348030,15.95686736,31081.0,31064.0,3.2729954]
[1609777348732,16.428824,31081.0,31064.0,2.8796982]
[1609777349131,16.428824,31081.0,31064.0,2.39636171]
[1609777349433,23.03395319,31065.0,31064.0,1.60980063]
[1609777349633,23.03395319,31065.0,31062.0,0.14422]
[1609777349832,21.03395319,31065.0,31062.0,0.14422]
[1609777350033,20.76025319,31065.0,31064.0,0.13632608]
[1609777350233,20.76025319,31065.0,31064.0,0.13124]
[1609777350833,20.54305319,31065.0,31064.0,4.72694]
[1609777351036,20.49495319,31065.0,31064.0,4.72694]
[1609777351233,20.49495319,31065.0,31064.0,4.23885789]
[1609777351434,20.05555319,31065.0,31064.0,4.23885789]
[1609777351635,19.44847319,31065.0,31064.0,4.23885789]
[1609777351835,19.44427319,31065.0,31064.0,4.23885789]
[1609777352035,15.44507319,31065.0,31064.0,4.23885789]
[1609777352234,14.02394319,31065.0,31064.0,3.45302483]
[1609777352435,12.77344319,31065.0,31064.0,3.45302483]
[1609777352635,12.47014319,31065.0,31064.0,3.58935091]
[1609777352835,12.45644319,31065.0,31064.0,3.58935091]
[1609777353036,12.29554319,31065.0,31064.0,3.58935091]
[1609777353236,9.29554319,31065.0,31064.0,3.58935091]
[1609777353436,9.21834319,31065.0,31064.0,3.58935091]
[1609777353637,9.19584319,31065.0,31064.0,3.58935091]
[1609777353837,9.08954319,31065.0,31064.0,5.08935091]
[1609777354038,9.05784319,31065.0,31064.0,4.56027483]
[1609777354238,8.97754319,31065.0,31064.0,4.1737267]
[1609777354437,8.84484319,31065.0,31064.0,2.6737267]
[1609777354639,8.78734319,31065.0,31064.0,0.10148]
[1609777354841,8.70354319,31065.0,31064.0,0.10148]
[1609777355037,8.67194319,31065.0,31064.0,0.10148]
[1609777355237,8.65914319,31065.0,31064.0,0.23780608]
[1609777355437,8.47984319,31065.0,31064.0,0.23780608]
[1609777355837,1.61031538,31065.0,31064.0,0.13632608]
[1609777356039,1.61031538,31065.0,31059.0,0.1136]
[1609777356237,1.72571538,31065.0,31059.0,0.0969]
[1609777356437,1.71851538,31065.0,31059.0,3.81548]
[1609777356638,1.71851538,31065.0,31059.0,3.71858]
[1609777357039,1.69281538,31065.0,31059.0,3.71858]
[1609777357241,0.81951538,31065.0,31064.0,0.13632608]
[1609777357440,0.71611538,31065.0,31036.0,0.04784483]
[1609777357640,0.58891538,31065.0,31064.0,0.15095]
[1609777357841,0.57611538,31065.0,31064.0,0.15095]
[1609777358042,0.48951538,31065.0,31064.0,0.15095]
[1609777358641,0.42841538,31065.0,31064.0,0.15095]
[1609777359042,0.42841538,31065.0,31054.0,3.84764325]
[1609777359244,0.42841538,31065.0,31064.0,0.13632608]
[1609777359644,0.30941538,31065.0,31064.0,0.13632608]
[1609777360044,0.24201538,31065.0,31064.0,0.13632608]
[1609777360244,0.24201538,31065.0,31062.0,0.12366]
[1609777360444,0.20671538,31065.0,31062.0,0.12366]
[1609777360845,0.11091538,31065.0,31062.0,0.12366]
[1609777361044,0.11091538,31065.0,31062.0,0.21876]
[1609777361245,0.11091538,31065.0,31064.0,0.13632608]
[1609777361446,0.11091538,31065.0,31054.0,3.3217051]
[1609777362448,0.09745,31073.0,31054.0,2.73229284]
[1609777362449,16.1918068,31063.0,31054.0,2.73229284]
[1609777362847,15.9059068,31063.0,31054.0,2.73229284]
[1609777363048,16.0631668,31063.0,31054.0,2.73229284]
[1609777363250,16.0631668,31063.0,31062.0,0.13632608]
[1609777363448,15.8531668,31063.0,31062.0,0.13632608]
[1609777363649,15.8531668,31063.0,31062.0,0.0955]
[1609777364249,15.6959068,31063.0,31057.0,0.10941]
[1609777364449,0.47153536,31064.0,31054.0,2.05581057]
[1609777364649,0.41503536,31064.0,31054.0,2.15304057]
[1609777364850,0.38323536,31064.0,31054.0,2.15304057]
[1609777365052,0.37613536,31064.0,31054.0,2.15304057]
[1609777365250,0.37613536,31064.0,31063.0,0.13632608]
[1609777365452,0.29583536,31064.0,31063.0,0.13632608]
[1609777365850,0.27653536,31064.0,31063.0,0.13632608]
[1609777366050,0.21543536,31064.0,31063.0,0.13632608]
[1609777366251,0.09745,31073.0,31054.0,1.69988089]
[1609777366752,16.62986644,31064.0,31054.0,1.69988089]
[1609777366952,16.54956644,31064.0,31054.0,0.09723]
[1609777367559,16.54956644,31064.0,31063.0,0.13632608]
[1609777367757,0.1135,31067.0,31051.0,0.03468693]
[1609777368257,0.1135,31067.0,31051.0,0.59258693]
[1609777369059,20.00458264,31064.0,31042.0,0.05841794]
[1609777369258,4.70331156,31064.0,31043.0,4.4063]
[1609777369458,3.85100307,31064.0,31063.0,0.13632608]
[1609777369658,3.85100307,31064.0,31063.0,0.23212608]
[1609777369858,3.75560307,31064.0,31063.0,0.23212608]
[1609777370260,0.47156628,31066.0,31043.0,4.24126823]
[1609777371059,0.40736628,31066.0,31043.0,4.24126823]
[1609777371261,0.1135,31067.0,31043.0,4.24126823]
[1609777371459,0.0332,31067.0,31066.0,0.13632608]
[1609777371860,0.0332,31067.0,31059.0,4.7718]
[1609777372059,0.13947,31080.0,31059.0,4.7718]
[1609777372361,0.13272,31089.0,31059.0,4.7718]
[1609777372562,1.10024421,31099.0,31059.0,4.7718]
[1609777372760,1.10024421,31099.0,31059.0,4.38521452]
[1609777372966,16.58180991,31067.0,31059.0,3.99228499]
[1609777373161,16.58180991,31067.0,31059.0,3.94228499]
[1609777373462,16.58180991,31067.0,31066.0,0.13632608]
[1609777373662,16.72769991,31067.0,31066.0,0.13632608]
[1609777374161,16.66779991,31067.0,31066.0,0.13632608]
[1609777374370,16.64699991,31067.0,31066.0,0.13632608]
[1609777374763,0.14589,31067.0,31045.0,3.37823721]
[1609777375465,0.14589,31067.0,31066.0,0.13632608]
[1609777375866,20.06813199,31067.0,31045.0,3.21465666]
[1609777376770,2.81786672,31067.0,31045.0,3.21465666]
[1609777377267,15.66309968,31067.0,31045.0,3.21465666]
[1609777377467,16.14477752,31067.0,31066.0,0.13632608]
[1609777378069,16.06547752,31067.0,31066.0,0.13632608]
[1609777378269,16.00257752,31067.0,31066.0,0.13632608]
[1609777378469,15.98057752,31067.0,31066.0,0.13632608]
[1609777378667,15.91657752,31067.0,31066.0,0.13632608]
[1609777379068,15.90637752,31067.0,31060.0,4.39410979]
[1609777379268,15.90008752,31067.0,31060.0,4.39410979]
[1609777379469,15.80478752,31067.0,31066.0,0.13632608]
[1609777379669,0.03331,31067.0,31066.0,0.13632608]
[1609777379869,0.4715335,31095.0,31066.0,0.13632608]
[1609777380070,0.3752335,31095.0,31060.0,4.14386284]
[1609777380272,0.3752335,31095.0,31064.0,0.15017]
[1609777380471,0.4868635,31095.0,31064.0,0.15017]
[1609777380870,0.4078635,31095.0,31064.0,0.15017]
[1609777381070,0.3124635,31095.0,31064.0,0.15017]
[1609777381271,0.3124635,31095.0,31065.0,0.0964]
[1609777381471,0.11163,31095.0,31094.0,0.13632608]
[1609777381671,0.13632608,31098.0,31094.0,0.096]
[1609777382070,2.608e-05,31098.0,31094.0,0.096]
[1609777382271,2.67143344,31124.0,31094.0,0.096]
[1609777382771,6.82391582,31106.0,31094.0,0.096]
[1609777382972,0.47132334,31094.0,31084.0,4.76964582]
[1609777383372,0.44692334,31094.0,31076.0,0.0962]
[1609777383783,0.13632608,31083.0,31076.0,0.23252608]
[1609777383974,0.25269608,31083.0,31076.0,0.23252608]
[1609777384578,0.25269608,31083.0,31076.0,0.0962]
[1609777384779,0.25269608,31083.0,31054.0,3.16096481]
[1609777385178,0.25269608,31083.0,31037.0,0.096]
[1609777385378,0.11637,31083.0,31037.0,0.096]
[1609777385777,0.11637,31083.0,31062.0,0.13632608]
[1609777385978,0.11637,31083.0,31063.0,0.0955]
[1609777386179,16.04410585,31077.0,31042.0,0.192]
[1609777386479,0.11637,31083.0,31042.0,0.192]
[1609777387079,16.06813602,31064.0,31032.0,4.73499]
[1609777387279,16.21434602,31064.0,31032.0,4.73499]
[1609777387779,16.13724602,31064.0,31060.0,0.13632608]
[1609777387981,0.14621,31064.0,31060.0,0.13632608]
[1609777388181,0.14621,31064.0,31061.0,0.0961]
[1609777388382,0.48321629,31051.0,31042.0,0.0968]
[1609777388583,0.58926629,31051.0,31032.0,0.14989]
[1609777388782,0.58926629,31051.0,31015.0,4.4415]
[1609777389282,16.07368136,31043.0,31015.0,4.4415]
[1609777389486,16.20627136,31043.0,31015.0,4.4415]
[1609777389683,16.17927136,31043.0,31015.0,4.4415]
[1609777389883,16.17287136,31043.0,31015.0,4.4415]
[1609777390084,16.09036885,31028.0,31015.0,4.4415]
[1609777390283,15.95856885,31028.0,31015.0,4.4415]
[1609777390483,15.94236885,31028.0,31026.0,0.13632608]
[1609777390686,15.94236885,31028.0,31015.0,4.4415]
[1609777390983,15.89266885,31028.0,31015.0,4.04823787]
[1609777391184,15.89266885,31028.0,31014.0,0.22152]
[1609777391984,15.87336885,31028.0,31014.0,0.22152]
[1609777392185,15.74476885,31028.0,31014.0,0.22152]
[1609777392386,15.63616885,31028.0,31014.0,0.22152]
[1609777392686,15.63616885,31028.0,31023.0,0.13632608]
[1609777392885,15.63616885,31028.0,31014.0,0.22152]
[1609777393685,15.63616885,31028.0,31014.0,0.0957]
[1609777393986,16.10047727,31016.0,30998.0,4.6889]
[1609777394186,16.10047727,31016.0,31003.0,0.0968]
[1609777394585,16.10047727,31016.0,31015.0,0.13632608]
[1609777394985,0.08852608,31020.0,31015.0,0.01782709]
[1609777395285,0.04822608,31020.0,31015.0,0.01782709]
[1609777395484,0.04102608,31020.0,31015.0,0.01782709]
[1609777395788,0.07440608,31023.0,31015.0,0.01782709]
[1609777395987,0.01040608,31023.0,31015.0,0.01782709]
[1609777396186,3.57940358,31027.0,31015.0,0.01782709]
[1609777396388,2.44240358,31027.0,31015.0,0.01782709]
[1609777396588,2.44240358,31027.0,31026.0,0.13632608]
[1609777396787,0.15779,31030.0,31019.0,3.64657101]
[1609777396987,0.09329,31030.0,31019.0,3.64657101]
[1609777397187,0.48368374,31021.0,31019.0,3.64657101]
[1609777397387,0.36998374,31021.0,31019.0,3.64657101]
[1609777397589,0.35408374,31021.0,31019.0,3.64657101]
[1609777397988,0.33778374,31021.0,31019.0,3.64657101]
[1609777398189,0.27368374,31021.0,31019.0,3.64657101]
[1609777398391,0.21028374,31021.0,31019.0,3.64657101]
[1609777398590,0.393974,31026.0,31008.0,0.0959]
[1609777398790,0.355374,31026.0,31020.0,0.1295]
[1609777399392,0.290774,31026.0,31020.0,0.1295]
[1609777399592,0.08819,31043.0,31016.0,0.0958]
[1609777399791,4.8734,31054.0,31016.0,0.24817]
[1609777400592,0.13632608,31017.0,31016.0,0.24817]
[1609777400792,0.13632608,31017.0,31016.0,0.02287]
[1609777401795,0.15235,31031.0,31017.0,0.0963]
[1609777402195,0.15235,31031.0,31014.0,0.14388]
[1609777402395,0.09535,31031.0,31014.0,0.14388]
[1609777402597,0.09535,31031.0,31022.0,0.13632608]
[1609777402995,0.47201477,31030.0,31010.0,0.14652]
[1609777403196,0.45391477,31030.0,31011.0,0.0968]
[1609777403396,0.43471477,31030.0,31011.0,0.0968]
[1609777404297,0.34021477,31030.0,31011.0,0.0968]
[1609777404498,0.13632608,31012.0,31001.0,0.23302608]
[1609777405097,0.08802608,31012.0,31001.0,0.23302608]
[1609777405899,16.22364275,31012.0,31001.0,0.11081869]
[1609777406500,16.13561667,31012.0,31006.0,0.13632608]
[1609777406700,0.48385536,31010.0,31006.0,0.13632608]
[1609777406899,0.48385536,31010.0,31006.0,0.28774608]
[1609777407102,0.38725536,31010.0,30993.0,0.2915]
[1609777407303,0.38725536,31010.0,30993.0,0.1944]
[1609777407500,0.35565536,31010.0,30993.0,0.1944]
[1609777407702,0.31055536,31010.0,30993.0,0.0975]
[1609777407900,0.47220744,31009.0,30967.0,0.9193]
[1609777408101,0.16042,31008.0,30957.0,0.1771]
[1609777408300,5.0893,31007.0,30957.0,0.30122]
[1609777408502,5.0893,31007.0,30984.0,0.13632608]
[1609777408704,0.16042,31008.0,30984.0,0.13632608]
[1609777408902,16.1284371,30994.0,30984.0,0.25913608]
[1609777409302,16.1284371,30994.0,30984.0,0.12281]
[1609777410303,20.6479371,30994.0,30977.0,0.14094]
[1609777410505,0.13632608,30978.0,30977.0,0.14094]
[1609777411309,16.13412668,30985.0,30977.0,0.14094]
[1609777411508,16.13412668,30985.0,30970.0,0.14619]
[1609777411509,20.46842668,30985.0,30970.0,0.14619]
[1609777411709,16.24235668,30985.0,30970.0,0.14619]
[1609777411908,4.6067,30979.0,30970.0,0.14619]
[1609777412508,0.13632608,30971.0,30948.0,0.15929028]
[1609777413509,78.62581164,30952.0,30948.0,0.15929028]
[1609777413708,78.62581164,30952.0,30949.0,0.098]
[1609777413910,78.57691164,30952.0,30949.0,0.09767853]
[1609777414212,78.57691164,30952.0,30948.0,0.15929028]
[1609777414414,78.19351164,30952.0,30948.0,0.15929028]
[1609777414611,78.32983772,30952.0,30948.0,0.15929028]
[1609777415310,78.30803772,30952.0,30949.0,0.0982]
[1609777415711,78.24503772,30952.0,30949.0,0.0982]
[1609777416517,77.95591164,30952.0,30949.0,0.0982]
[1609777416715,77.68121164,30952.0,30949.0,0.0982]
[1609777416915,77.56761164,30952.0,30949.0,0.0982]
[1609777417114,77.39031164,30952.0,30949.0,0.0982]
[1609777417315,77.22921164,30952.0,30949.0,0.0982]
[1609777417515,77.19641164,30952.0,30949.0,0.0982]
[1609777417915,76.04731164,30952.0,30949.0,0.0982]
[1609777418116,76.03571164,30952.0,30949.0,0.0982]
[1609777418517,76.02591164,30952.0,30949.0,0.0982]
[1609777418718,11.13394888,30952.0,30949.0,0.0982]
[1609777419019,11.05674888,30952.0,30949.0,0.0982]
[1609777420118,10.91544888,30952.0,30949.0,0.0982]
[1609777420419,10.90154888,30952.0,30949.0,0.0982]
[1609777420618,10.62517496,30952.0,30949.0,0.0982]
[1609777420820,10.52917496,30952.0,30949.0,0.0982]
[1609777421218,26.82108242,30950.0,30949.0,0.0982]
[1609777421525,26.72378242,30950.0,30949.0,0.0982]
[1609777421719,26.57278242,30950.0,30949.0,0.0982]
[1609777421919,26.44538242,30950.0,30949.0,0.0982]
[1609777422125,14.99208497,30950.0,30949.0,0.0982]
[1609777423125,14.84768497,30950.0,30949.0,0.0982]
[1609777423331,14.69868497,30950.0,30949.0,0.0982]
[1609777423540,14.65938497,30950.0,30949.0,0.0982]
[1609777423725,14.64938497,30950.0,30949.0,0.0982]
[1609777423929,10.32824888,30952.0,30949.0,0.0982]
[1609777424730,10.28054888,30952.0,30951.0,0.13632608]
[1609777424929,10.27614888,30952.0,30951.0,0.13632608]
[1609777425125,9.98624888,30952.0,30951.0,0.13632608]
[1609777425925,9.93854888,30952.0,30951.0,0.13632608]
[1609777426825,23.6947645,30952.0,30949.0,0.0982]
[1609777427425,23.2813645,30952.0,30949.0,0.0982]
[1609777428627,0.13632608,30950.0,30948.0,0.04303812]
[1609777428827,0.13632608,30950.0,30944.0,0.13632608]
[1609777429428,13.40540316,30950.0,30941.0,0.0972]
[1609777430732,0.13632608,30942.0,30941.0,0.23352608]
[1609777430932,0.13632608,30942.0,30941.0,0.13632608]
[1609777431131,0.13632608,30942.0,30928.0,4.753]
[1609777431735,13.26907708,30950.0,30928.0,4.753]
[1609777431934,32.31942615,30945.0,30933.0,0.19643]
[1609777432635,0.13632608,30934.0,30933.0,0.19643]
[1609777432835,0.03962608,30934.0,30933.0,0.09893]
[1609777433035,30.01179794,30936.0,30933.0,0.09893]
[1609777434035,30.01179794,30936.0,30934.0,0.0975]
[1609777434237,29.69289794,30936.0,30934.0,0.6564]
[1609777434435,29.54029794,30936.0,30934.0,0.6564]
[1609777434635,29.46299794,30936.0,30934.0,0.6564]
[1609777434835,29.36609794,30936.0,30934.0,0.6564]
[1609777435035,29.30169794,30936.0,30934.0,0.6564]
[1609777435836,29.20669794,30936.0,30934.0,0.6564]
[1609777436740,29.11049794,30936.0,30934.0,0.6564]
[1609777436937,29.00079794,30936.0,30934.0,0.6564]
[1609777437337,28.15659794,30936.0,30934.0,0.6564]
[1609777437538,28.06999794,30936.0,30934.0,0.6564]
[1609777437737,28.06499794,30936.0,30934.0,0.6564]
[1609777437939,2.9926366,30936.0,30934.0,0.6564]
[1609777438337,2.9926366,30936.0,30934.0,0.80296]
[1609777438938,2.8979366,30936.0,30934.0,0.80296]
[1609777439138,2.8979366,30936.0,30935.0,0.13632608]
[1609777441239,2.8979366,30936.0,30934.0,0.28288608]
[1609777441439,2.8979366,30936.0,30934.0,0.14656]
[1609777442245,2.8979366,30936.0,30935.0,0.0977]
[1609777443441,2.8179366,30936.0,30935.0,0.0977]
[1609777443943,17.63252811,30936.0,30935.0,0.0977]
[1609777444546,17.76885419,30936.0,30935.0,0.0977]
[1609777444943,17.68485419,30936.0,30935.0,0.0977]
[1609777445348,17.68485419,30936.0,30926.0,0.0973]
[1609777445552,17.68485419,30936.0,30881.0,0.5304]
[1609777445747,17.82161419,30936.0,30845.0,0.5331]
[1609777446149,3.6927,30927.0,30881.0,0.5331]
[1609777446348,3.6927,30927.0,30888.0,0.0983]
[1609777446547,3.84607,30927.0,30895.0,0.0985]
[1609777446949,3.84607,30927.0,30895.0,0.23752]
[1609777447152,0.15337,30927.0,30895.0,0.23752]
[1609777447549,0.13632608,30910.0,30895.0,0.23752]
[1609777448148,0.05792608,30910.0,30895.0,0.23752]
[1609777448549,37.78878939,30911.0,30895.0,0.23752]
[1609777448750,37.08878939,30911.0,30895.0,0.23752]
[1609777448949,36.51368939,30911.0,30895.0,0.23752]
[1609777449152,35.98133939,30911.0,30895.0,4.33592]
[1609777449552,35.85503939,30911.0,30910.0,0.13632608]
[1609777449752,34.87033939,30911.0,30910.0,0.23272608]
[1609777449951,34.82413939,30911.0,30910.0,0.24913]
[1609777450463,8.5535533,30911.0,30910.0,0.24913]
[1609777450666,8.2786533,30911.0,30910.0,0.24913]
[1609777450859,7.9574533,30911.0,30910.0,0.24913]
[1609777451055,7.6196533,30911.0,30910.0,0.24913]
[1609777451254,7.1637533,30911.0,30910.0,0.24913]
[1609777451453,27.31157735,30911.0,30899.0,0.0976]
[1609777451656,27.31157735,30911.0,30910.0,0.12959]
[1609777451855,27.19867735,30911.0,30910.0,0.12959]
[1609777452060,26.60917735,30911.0,30910.0,0.12959]
[1609777452265,25.88817735,30911.0,30910.0,0.26591608]
[1609777452454,25.27847735,30911.0,30910.0,0.26591608]
[1609777452663,24.74967735,30911.0,30910.0,1.03451608]
[1609777452862,22.28077735,30911.0,30910.0,1.03451608]
[1609777453065,21.72497735,30911.0,30910.0,1.03451608]
[1609777453254,21.53067735,30911.0,30910.0,1.03451608]
[1609777453457,21.50787735,30911.0,30910.0,1.03451608]
[1609777453655,21.31227735,30911.0,30910.0,1.03451608]
[1609777453855,21.26367735,30911.0,30910.0,1.03451608]
[1609777454056,21.21587735,30911.0,30910.0,1.03451608]
[1609777454258,21.20297735,30911.0,30910.0,1.03451608]
[1609777454556,27.82614923,30912.0,30910.0,1.03451608]